{"text_format":"1","workbook":"xlsx","n_sheets":14,"sheets":["Cover","Info","Results","E01","E02","E03","E04","E05","E06","E07","E08","E09","E10","About"],"not_rendered":{"charts":10,"images":46,"macros":1,"external_links":0,"defined_names":15,"comments":0,"pivot_tables":0},"unopened":[],"bounds":{"document_bytes":16777216,"sheet_cells":100000,"rows_first":2000,"rows_last":500,"rows_between":2000,"halvings":0,"cell_chars":16384,"cell_head_chars":4096},"cells_cut":0,"cells_raw":0,"read":"whole","date_system":"1900"}

{"sheet":"Cover","index":0,"n_rows":0,"n_cols":0,"rows_kept":0,"cut":false,"hidden":false,"merged":[]}

{"sheet":"Info","index":1,"n_rows":49,"n_cols":4,"rows_kept":49,"cut":false,"hidden":false,"merged":[[0,0,0,16383],[49,1,49,3],[2,1,2,2],[3,1,3,2],[4,1,4,2],[5,1,5,2],[6,1,6,2],[39,1,39,2],[40,1,40,2],[41,1,41,2],[42,1,42,2],[43,1,43,2],[45,1,45,3],[46,1,46,3],[48,1,48,3]]}
[]
[]
[null,"Данная оценка",null,"Реагирование"]
[null,"Название города:"]
[null,"Тип города (муниципалитет, муниципальные районы и т.д.):"]
[null,"Страна:"]
[null,"Дата оценки:"]
[]
[null,"Краткие сведения о городе (обязательные данные)","Реагирование","Дата создания источника данных"]
[null,"Высшее должностное лицо (например, мэр и т.д)"]
[null,"Общая численность населения города:   "]
[null,"Площадь территории города (в км2):"]
[null,"Плотность населения (на км2):"]
[null,"Доля молодежи (от 15 до 24 лет) (%):"]
[null,"Доля пожилого населения (старше 65 лет) (%):"]
[null,"Гендерный аспект (домохозяйства, возглавляемые женщинами):"]
[null,"Уровень грамотности (% грамотного населения):"]
[null,"Уровень бедности (% населения выше черты бедности):"]
[null,"Средний доход домохозяйства (долл. США):"]
[null,"Жители, не являющиеся гражданами страны (%):"]
[null,"Наиболее вероятный (известный) риск бедствий:"]
[null,"Бедствие (известное) с наиболее тяжелыми последствиями:"]
[]
[null,"Профиль города [1]","Общая численность и/или процент от общей численности населения","Источник информации"]
[null,"Численность людей с инвалидностью (оценочная распространенность)"]
[null,"Информация в разбивке по доходам (ниже черты бедности)"]
[null,"Информация в разбивке по полу"]
[null,"Информация в разбивке по возрасту"]
[null,"Информация в разбивке по видам инвалидности (нарушение физического развития, нарушение сенсорных функций, нарушение когнитивных функций, нарушение интеллектуального развития, психические заболевания, и некоторые формы хронических заболеваний)"]
[null,"Информация в разбивке по микрорайонам или кварталам"]
[]
[null,"Краткие сведения о городе (необязательные данные)","Реагирование","Дата создания источника данных"]
[null,"Общее количество домохозяйств:"]
[null,"Размер домохозяйства (человек):"]
[null,"Прожиточный минимум (долл. США):"]
[null,"ВВП страны на душу населения (долл. США):"]
[null,"Коэффициент Джини:"]
[null,"Городской продукт на душу населения (долл. США):"]
[]
[null,"Подразделение в составе местных органов власти, отвечающее за снижение риска бедствий и обеспечение устойчивости",null,"Реагирование"]
[null,"Имя лица, руководившего / координировавшего проведение оценки на основе оценочного листа:"]
[null,"Организация:"]
[null,"Контактная информация:"]
[null,"Согласие поделиться результатами или на то, чтобы УСРБ ООН и партнеры использовали их в качестве примера / анализа практической ситуации:"]
[]
[null,"Отражение информации о ситуации людей с инвалидностью в городе / местном органе власти [2]"]
[]
[]
[null,"Информация о заинтересованных сторонах [3]"]

{"sheet":"Results","index":2,"n_rows":146,"n_cols":13,"rows_kept":146,"cut":false,"hidden":false,"merged":[[34,2,34,5],[83,2,83,5],[41,2,41,5],[42,2,42,5],[49,2,49,5],[56,2,56,5],[54,3,54,6],[39,3,39,6],[62,3,62,6],[67,3,67,6],[73,3,73,6],[69,2,69,5],[70,2,70,5],[64,2,64,5],[58,2,58,5],[57,2,57,5],[59,2,59,5],[35,2,35,5],[104,1,104,3],[88,2,88,5],[95,2,95,5],[96,2,96,5],[102,1,102,2],[86,3,86,5],[93,3,93,6],[89,2,89,5],[90,2,90,5],[75,2,75,5],[76,2,76,5]]}
[]
[]
[]
[]
[null,{"$f":"Info!B4&IF(Info!D4=\"\",\"\",Info!D4)","v":"Название города:"}]
[]
[null,{"$f":"Info!B6&IF(Info!D6=\"\",\"\",Info!D6)","v":"Страна:"}]
[]
[null,{"$f":"Info!B7&IF(Info!D7=\"\",\"\",Info!D7)","v":"Дата оценки:"}]
[]
[]
[]
[]
[]
[]
[]
[]
[]
[]
[]
[]
[]
[]
[]
[]
[]
[]
[]
[]
[]
[]
[]
[null,"Основной принцип 01:",null,{"$f":"D109","v":"Организация мер по повышению устойчивости к бедствиям - Инклюзия людей с инвалидностью в управление рисками бедствий"}]
[]
[null,{"$f":"C121","v":"Вопрос 1.1"},{"$f":"E121","v":"Не оставлять никого в стороне"},null,null,null,{"$f":"F121","v":0}]
[null,{"$f":"C122","v":"Вопрос 1.2"},{"$f":"E122","v":"Организация, координация и участие"},null,null,null,{"$f":"F122","v":0}]
[]
[]
[]
[null,"Основной принцип 02:",null,{"$f":"D110","v":"Определение, понимание и использование текущих и будущих сценариев рисков - Инклюзия людей с инвалидностью в сценарии риска бедствий"}]
[]
[null,{"$f":"C123","v":"Вопрос 2.1"},{"$f":"E123","v":"Разработка анализов рисков и сценариев рисков с учетом потребностей людей с инвалидностью"},null,null,null,{"$f":"F123","v":0}]
[null,{"$f":"C124","v":"Вопрос 2.2"},{"$f":"E124","v":"Каскадные эффекты"},null,null,null,{"$f":"F124","v":0}]
[]
[]
[]
[]
[null,"Основной принцип 03:",null,{"$f":"D111","v":"Улучшение финансовых возможностей для повышения устойчивости  \n к бедствиям - Улучшение финансовых возможностей для повышения устойчивости к бедствиям"}]
[]
[null,{"$f":"C125","v":"Вопрос 3.1"},{"$f":"E125","v":"Инклюзивные финансовые механизмы"},null,null,null,{"$f":"F125","v":0}]
[]
[]
[]
[]
[null,"Основной принцип 04:",null,{"$f":"D112","v":"Стремление к устойчивому городскому строительству - Стремление к устойчивому городскому строительству"}]
[]
[null,{"$f":"C126","v":"Вопрос 4.1"},{"$f":"E126","v":"Инклюзивное устойчивое архитектурно-строительное проектирование"},null,null,null,{"$f":"F126","v":0}]
[null,{"$f":"C127","v":"Вопрос 4.2"},{"$f":"E127","v":"Строительные нормы и правила"},null,null,null,{"$f":"F127","v":0}]
[null,{"$f":"C128","v":"Вопрос 4.3 "},{"$f":"E128","v":"Строительные нормы и правила"},null,null,null,{"$f":"F128","v":0}]
[null,{"$f":"C129","v":"Вопрос 4.4"},{"$f":"E129","v":"Устранение барьеров окружающей среды"},null,null,null,{"$f":"F129","v":0}]
[]
[]
[null,"Основной принцип 05:",null,{"$f":"D113","v":"Защита естественных буферных зон для усиления защитных функций природных экосистем - "}]
[]
[null,null,"-- no question --"]
[]
[]
[null,"Основной принцип 06:",null,{"$f":"D114","v":"Укрепление институционального потенциала для обеспечения устойчивости   - Инклюзия людей с инвалидностью в институциональный потенциал"}]
[]
[null,{"$f":"C130","v":"Вопрос 6.1"},{"$f":"E130","v":"Развитие потенциала и инклюзия для обеспечения устойчивости к бедствиям"},null,null,null,{"$f":"F130","v":0}]
[null,{"$f":"C131","v":"Вопрос 6.2"},{"$f":"E131","v":"Доступный язык"},null,null,null,{"$f":"F131","v":0}]
[]
[]
[null,"Основной принцип 07:",null,{"$f":"D115","v":"Понимание и усиление общественного потенциала для развития устойчивости - Дополнение - Инклюзия людей с инвалидностью в общественный потенциал"}]
[]
[null,{"$f":"C132","v":"Вопрос 7"},{"$f":"E132","v":"1 Активное участие организаций людей с инвалидностью"},null,null,null,{"$f":"F132","v":0}]
[null,{"$f":"C133","v":"Вопрос 7.2"},{"$f":"E133","v":"Наращивание потенциала организациями/для организаций людей с инвалидностью"},null,null,null,{"$f":"F133","v":0}]
[]
[]
[]
[]
[null,"Основной принцип 08:",null,{"$f":"D116","v":"Повышение устойчивости инфраструктуры - Инклюзия людей с инвалидностью в обеспечение устойчивости инфраструктуры"}]
[]
[null,{"$f":"C134","v":"Вопрос 8.1"},{"$f":"E134","v":"Защита от насилия"},null,null,null,{"$f":"F134","v":0}]
[]
[]
[null,"Основной принцип 09:",null,{"$f":"D117","v":"Обеспечение эффективного реагирования на бедствия - Дополнение - Инклюзия людей с инвалидностью в реагирование на бедствия"}]
[]
[null,{"$f":"C135","v":"Вопрос 9.1"},{"$f":"E135","v":"Инклюзивное обнаружение, мониторинг и раннее предупреждение"},null,null,null,{"$f":"F135","v":0}]
[null,{"$f":"C136","v":"Вопрос 9.2"},{"$f":"E136","v":"Учения"},null,null,null,{"$f":"F136","v":0}]
[null,{"$f":"C137","v":"Вопрос 9.3"},{"$f":"E137","v":"Кампании по повышению осведомленности и многосценарные учения"},null,null,null,{"$f":"F137","v":0}]
[]
[]
[null,"Основной принцип 10:",null,{"$f":"D118","v":"Ускоренное восстановление и принцип «Лучше, чем было» - Инклюзия людей с инвалидностью в процесс восстановления/принцип «Лучше, чем был"}]
[]
[null,{"$f":"C138","v":"Вопрос 10.1"},{"$f":"E138","v":"Вопрос 10.1 Инклюзивная реконструкция и восстановление"},null,null,null,{"$f":"F138","v":0}]
[null,{"$f":"C139","v":"Вопрос 10.2"},{"$f":"E139","v":"Обобщение извлеченных уроков"},null,null,null,{"$f":"F139","v":0}]
[]
[]
[]
[]
[]
[null,{"$f":"TODAY()","v":"2023-08-09"},null,null,null,null,null,{"$f":"Info!$B$4","v":"Название города:"},{"$f":"IF(Info!D4=\"\",\"\",Info!D4)","v":""},null,{"$f":"Info!$B$6","v":"Страна:"},{"$f":"IF(Info!D6=\"\",\"\",Info!D6)","v":""}]
[]
[]
[]
[]
[null,null,"Label","Name",null,"Essential","TotalScore","MaxScore","Label"]
[null,null,"E1",{"$f":"'E01'!I2&\" - \"&'E01'!I3","v":"Организация мер по повышению устойчивости к бедствиям - Инклюзия людей с инвалидностью в управление рисками бедствий"},null,"E1",{"$f":"SUMIFS($F$121:$F$997,$B$121:$B$997,F109)","v":0},{"$f":"COUNTIFS($B$121:$B$997,F109)*3","v":6},"01",null,{"$f":"SUM(G109:G118)","v":0},{"$f":"K109/K110","v":0},{"$f":"CONCATENATE(\"Общий балл в рамках этой оценки составляет \",SUM(G109:G118),\" / \",SUM(H109:H118))","v":"Общий балл в рамках этой оценки составляет 0 / 57"}]
[null,null,"E2",{"$f":"'E02'!I2&\" - \"&'E02'!I3","v":"Определение, понимание и использование текущих и будущих сценариев рисков - Инклюзия людей с инвалидностью в сценарии риска бедствий"},null,"E2",0,{"$f":"COUNTIFS($B$121:$B$997,F110)*3","v":6},"02",null,{"$f":"SUM(H109:H118)","v":57},{"$f":"1-L109","v":1}]
[null,null,"E3",{"$f":"'E03'!I2&\" - \"&'E03'!I3","v":"Улучшение финансовых возможностей для повышения устойчивости  \n к бедствиям - Улучшение финансовых возможностей для повышения устойчивости к бедствиям"},null,"E3",0,3,"03"]
[null,null,"E4",{"$f":"'E04'!I2&\" - \"&'E04'!I3","v":"Стремление к устойчивому городскому строительству - Стремление к устойчивому городскому строительству"},null,"E4",0,12,"04"]
[null,null,"E5",{"$f":"'E05'!I2&\" - \"&'E05'!I3","v":"Защита естественных буферных зон для усиления защитных функций природных экосистем - "},null,"E5",0,0,"05"]
[null,null,"E6",{"$f":"'E06'!I2&\" - \"&'E06'!I3","v":"Укрепление институционального потенциала для обеспечения устойчивости   - Инклюзия людей с инвалидностью в институциональный потенциал"},null,"E6",0,6,"06"]
[null,null,"E7",{"$f":"'E07'!I2&\" - \"&'E07'!I3","v":"Понимание и усиление общественного потенциала для развития устойчивости - Дополнение - Инклюзия людей с инвалидностью в общественный потенциал"},null,"E7",0,6,"07"]
[null,null,"E8",{"$f":"'E08'!I2&\" - \"&'E08'!I3","v":"Повышение устойчивости инфраструктуры - Инклюзия людей с инвалидностью в обеспечение устойчивости инфраструктуры"},null,"E8",0,3,"08"]
[null,null,"E9",{"$f":"'E09'!I2&\" - \"&'E09'!I3","v":"Обеспечение эффективного реагирования на бедствия - Дополнение - Инклюзия людей с инвалидностью в реагирование на бедствия"},null,"E9",0,9,"09"]
[null,null,"E10",{"$f":"'E10'!I2&\" - \"&'E10'!I3","v":"Ускоренное восстановление и принцип «Лучше, чем было» - Инклюзия людей с инвалидностью в процесс восстановления/принцип «Лучше, чем был"},null,"E10",0,6,"10"]
[]
[null,"Section","Ref",null,"Question","SelectedScore","ThisScore"]
[null,"E1",{"$f":"'E01'!G$5","v":"Вопрос 1.1"},null,{"$f":"'E01'!I$5","v":"Не оставлять никого в стороне"},{"$f":"IF(G121=\"\",0,IF(G121=0,0,4-G121))","v":0},{"$f":"OFFSET('E01'!$E$1,MATCH(C121,'E01'!G:G,0)+3,0)","v":0},null,"Remarks: "]
[null,"E1",{"$f":"'E01'!G$16","v":"Вопрос 1.2"},null,{"$f":"'E01'!I$16","v":"Организация, координация и участие"},0,{"$f":"OFFSET('E01'!$E$1,MATCH(C122,'E01'!G:G,0)+3,0)","v":0},null,"- On this page, firstly fix from Row 126 downward to reflect all questions in this Scorecard"]
[null,"E2",{"$f":"'E02'!G$5","v":"Вопрос 2.1"},null,{"$f":"'E02'!I$5","v":"Разработка анализов рисков и сценариев рисков с учетом потребностей людей с инвалидностью"},0,{"$f":"OFFSET('E02'!$E$1,MATCH(C123,'E02'!G:G,0)+3,0)","v":0},null,"- Column G from G127 downward, must double check the formula.  (Formula = offset(reference, rows, cols, [height],[width])"]
[null,"E2",{"$f":"'E02'!G$16","v":"Вопрос 2.2"},null,{"$f":"'E02'!I$16","v":"Каскадные эффекты"},0,{"$f":"OFFSET('E02'!$E$1,MATCH(C124,'E02'!G:G,0)+3,0)","v":0},null,"- Column F from F127 downward, must adjust the formula. If the scoring bar is between 0-3, use \"4\"; if the scoring is between 0-5, use \"6\""]
[null,"E3",{"$f":"'E03'!G$5","v":"Вопрос 3.1"},null,{"$f":"'E03'!I$5","v":"Инклюзивные финансовые механизмы"},0,{"$f":"OFFSET('E03'!$E$1,MATCH(C125,'E03'!G:G,0)+3,0)","v":0},null,"E.G., =IF(G127=\"\",0,IF(G127=0,0,4-G127)) is for 0-3 scoring bar"]
[null,"E4",{"$f":"'E04'!G$5","v":"Вопрос 4.1"},null,{"$f":"'E04'!I$5","v":"Инклюзивное устойчивое архитектурно-строительное проектирование"},0,{"$f":"OFFSET('E04'!$E$1,MATCH(C126,'E04'!G:G,0)+3,0)","v":0},null,"E.G., =IF(G127=\"\",0,IF(G127=0,0,6-G127)) is for 0-5 scoring bar"]
[null,"E4",{"$f":"'E04'!G$16","v":"Вопрос 4.2"},null,{"$f":"'E04'!I$16","v":"Строительные нормы и правила"},0,{"$f":"OFFSET('E04'!$E$1,MATCH(C127,'E04'!G:G,0)+3,0)","v":0}]
[null,"E4",{"$f":"'E04'!G$27","v":"Вопрос 4.3 "},null,{"$f":"'E04'!I$27","v":"Строительные нормы и правила"},0,{"$f":"OFFSET('E04'!$E$1,MATCH(C128,'E04'!G:G,0)+3,0)","v":0},null,"-Then, work on Row 114 - 123"]
[null,"E4",{"$f":"'E04'!G$38","v":"Вопрос 4.4"},null,{"$f":"'E04'!I$38","v":"Устранение барьеров окружающей среды"},0,{"$f":"OFFSET('E04'!$E$1,MATCH(C129,'E04'!G:G,0)+3,0)","v":0},null,"- Check Column D (D114:D123) for the Essential titles"]
[null,"E6",{"$f":"'E06'!G$5","v":"Вопрос 6.1"},null,{"$f":"'E06'!I$5","v":"Развитие потенциала и инклюзия для обеспечения устойчивости к бедствиям"},0,{"$f":"OFFSET('E06'!$E$1,MATCH(C130,'E06'!G:G,0)+3,0)","v":0},null,"- Check Column G (G114:G123).  The formular should not need fixing. (=SUMIFS($F$126:$F$1002,$B$126:$B$1002,F114)"]
[null,"E6",{"$f":"'E06'!G$16","v":"Вопрос 6.2"},null,{"$f":"'E06'!I$16","v":"Доступный язык"},0,{"$f":"OFFSET('E06'!$E$1,MATCH(C131,'E06'!G:G,0)+3,0)","v":0},null,"- Check Column H (H114:H123) Maximum Score"]
[null,"E7",{"$f":"'E07'!G$5","v":"Вопрос 7"},null,{"$f":"'E07'!I$5","v":"1 Активное участие организаций людей с инвалидностью"},0,{"$f":"OFFSET('E07'!$E$1,MATCH(C132,'E07'!G:G,0)+3,0)","v":0},null,"- Use formular =COUNTIFS($B$126:$B$1002,F114)*3, if scoring bar is 0-3"]
[null,"E7",{"$f":"'E07'!G$16","v":"Вопрос 7.2"},null,{"$f":"'E07'!I$16","v":"Наращивание потенциала организациями/для организаций людей с инвалидностью"},0,{"$f":"OFFSET('E07'!$E$1,MATCH(C133,'E07'!G:G,0)+3,0)","v":0},null,"- Use formular =COUNTIFS($B$126:$B$1002,F114)*5, if scoring bar is 0-5"]
[null,"E8",{"$f":"'E08'!G$5","v":"Вопрос 8.1"},null,{"$f":"'E08'!I$5","v":"Защита от насилия"},0,{"$f":"OFFSET('E08'!$E$1,MATCH(C134,'E08'!G:G,0)+3,0)","v":0}]
[null,"E9",{"$f":"'E09'!G$5","v":"Вопрос 9.1"},null,{"$f":"'E09'!I$5","v":"Инклюзивное обнаружение, мониторинг и раннее предупреждение"},0,{"$f":"OFFSET('E09'!$E$1,MATCH(C135,'E09'!G:G,0)+3,0)","v":0},null,"- Then adjust the result display area above"]
[null,"E9",{"$f":"'E09'!G$16","v":"Вопрос 9.2"},null,{"$f":"'E09'!I$16","v":"Учения"},0,{"$f":"OFFSET('E09'!$E$1,MATCH(C136,'E09'!G:G,0)+3,0)","v":0},null,"- Fix the list of indicators"]
[null,"E9",{"$f":"'E09'!G$27","v":"Вопрос 9.3"},null,{"$f":"'E09'!I$27","v":"Кампании по повышению осведомленности и многосценарные учения"},0,{"$f":"OFFSET('E09'!$E$1,MATCH(C137,'E09'!G:G,0)+3,0)","v":0},null,"- Apply appropriate chart types"]
[null,"E10",{"$f":"'E10'!G$5","v":"Вопрос 10.1"},null,{"$f":"'E10'!I$5","v":"Вопрос 10.1 Инклюзивная реконструкция и восстановление"},0,{"$f":"OFFSET('E10'!$E$1,MATCH(C138,'E10'!G:G,0)+3,0)","v":0},null,"- Change chart's axis value (3 maximum for 0-3 scoring bar, and 5 maximum for 0-5 scoring bar)"]
[null,"E10",{"$f":"'E10'!G$16","v":"Вопрос 10.2"},null,{"$f":"'E10'!I$16","v":"Обобщение извлеченных уроков"},0,{"$f":"OFFSET('E10'!$E$1,MATCH(C139,'E10'!G:G,0)+3,0)","v":0},null,"- Adjust the chart diaplay alignment across all essentials, etc."]
[null,null,null,null,null,null,null,null,"- View from 'Page Break Preview' and further adjust page layout to fit nicely in the print area"]
[]
[]
[null,null,null,null,null,null,null,null,"- Replace the title part, copyright year with launch year, check other texts, and the overall diagram (adjust axis value if needed)"]
[]
[]
[null,null,null,null,null,null,null,null,"- Once done, change font color from Row 107 downward to white"]

{"sheet":"E01","index":3,"n_rows":38,"n_cols":9,"rows_kept":38,"cut":false,"hidden":false,"merged":[[19,2,22,3],[7,2,7,3],[8,2,11,3],[5,2,5,3],[6,2,6,3],[16,2,16,3],[17,2,17,3],[18,2,18,3]]}
[]
[null,null,null,null,null,null,null,null,"Организация мер по повышению устойчивости к бедствиям"]
[null,"П1 Инклюзия людей с инвалидностью в управление рисками бедствий",null,null,null,null,{"$f":"TRIM(LEFT(B3,3))","v":"П1"},null,{"$f":"TRIM(MID(B3,4,80))","v":"Инклюзия людей с инвалидностью в управление рисками бедствий"}]
[]
[null,"Вопрос 1.1 Не оставлять никого в стороне",null,null,null,null,{"$f":"TRIM(LEFT(B5,10))","v":"Вопрос 1.1"},null,{"$f":"TRIM(MID(B5,12,120))","v":"Не оставлять никого в стороне"}]
[null,"Вопрос","Комментарии"]
[]
[null,"Ответы","Средства проверки (объяснение и обоснование)"]
[null,null,null,null,null,{"$f":"IF($E$9=1,TRUE,FALSE)","v":false}]
[null,null,null,null,null,{"$f":"IF($E$9=2,TRUE,FALSE)","v":false}]
[null,null,null,null,null,{"$f":"IF($E$9=3,TRUE,FALSE)","v":false}]
[null,null,null,null,null,{"$f":"IF($E$9=4,TRUE,FALSE)","v":false}]
[null,"Действия по содействию инклюзии людей с инвалидностью","Ответственная организация ","Временные рамки"]
[]
[]
[null,"Вопрос 1.2 Организация, координация и участие ",null,null,null,null,{"$f":"TRIM(LEFT(B16,10))","v":"Вопрос 1.2"},null,{"$f":"TRIM(MID(B16,12,120))","v":"Организация, координация и участие"}]
[null,"Вопрос","Комментарии"]
[]
[null,"Ответы","Средства проверки (объяснение и обоснование)"]
[null,null,null,null,null,{"$f":"IF($E$20=1,TRUE,FALSE)","v":false}]
[null,null,null,null,null,{"$f":"IF($E$20=2,TRUE,FALSE)","v":false}]
[null,null,null,null,null,{"$f":"IF($E$20=3,TRUE,FALSE)","v":false}]
[null,null,null,null,null,{"$f":"IF($E$20=4,TRUE,FALSE)","v":false}]
[null,"Действия по содействию инклюзии людей с инвалидностью","Ответственная организация ","Временные рамки"]
[]
[]
[null,null,null,null,null,null,{"$f":"LEFT(B27,5)","v":""}]
[]
[]
[]
[]
[]
[]
[]
[]
[]
[]
[null,null,null,null,null,null,{"$f":"LEFT(B38,5)","v":""}]

{"sheet":"E02","index":4,"n_rows":38,"n_cols":9,"rows_kept":38,"cut":false,"hidden":false,"merged":[[18,2,18,3],[8,2,11,3],[19,2,22,3],[5,2,5,3],[6,2,6,3],[7,2,7,3],[16,2,16,3],[17,2,17,3]]}
[]
[null,null,null,null,null,null,null,null,"Определение, понимание и использование текущих и будущих сценариев рисков"]
[null,"П2 Инклюзия людей с инвалидностью в сценарии риска бедствий",null,null,null,null,{"$f":"TRIM(LEFT(B3,3))","v":"П2"},null,{"$f":"TRIM(MID(B3,4,80))","v":"Инклюзия людей с инвалидностью в сценарии риска бедствий"}]
[]
[null,"Вопрос 2.1 Разработка анализов рисков и сценариев рисков с учетом потребностей людей с инвалидностью",null,null,null,null,{"$f":"TRIM(LEFT(B5,10))","v":"Вопрос 2.1"},null,{"$f":"TRIM(MID(B5,12,120))","v":"Разработка анализов рисков и сценариев рисков с учетом потребностей людей с инвалидностью"}]
[null,"Вопрос","Comments"]
[]
[null,"Ответы","Средства проверки (объяснение и обоснование)"]
[null,null,null,null,null,{"$f":"IF($E$9=1,TRUE,FALSE)","v":false}]
[null,null,null,null,null,{"$f":"IF($E$9=2,TRUE,FALSE)","v":false}]
[null,null,null,null,null,{"$f":"IF($E$9=3,TRUE,FALSE)","v":false}]
[null,null,null,null,null,{"$f":"IF($E$9=4,TRUE,FALSE)","v":false}]
[null,"Действия по содействию инклюзии людей с инвалидностью","Ответственная организация ","Временные рамки"]
[]
[]
[null,"Вопрос 2.2 Каскадные эффекты",null,null,null,null,{"$f":"TRIM(LEFT(B16,10))","v":"Вопрос 2.2"},null,{"$f":"TRIM(MID(B16,12,120))","v":"Каскадные эффекты"}]
[null,"Вопрос","Комментарии"]
[]
[null,"Ответы","Средства проверки (объяснение и обоснование)"]
[null,null,null,null,null,{"$f":"IF($E$20=1,TRUE,FALSE)","v":false}]
[null,null,null,null,null,{"$f":"IF(E20=2,TRUE,FALSE)","v":false}]
[null,null,null,null,null,{"$f":"IF(E20=3,TRUE,FALSE)","v":false}]
[null,null,null,null,null,{"$f":"IF(E20=4,TRUE,FALSE)","v":false}]
[null,"Действия по содействию инклюзии людей с инвалидностью","Ответственная организация ","Временные рамки"]
[]
[]
[null,null,null,null,null,null,{"$f":"LEFT(B27,5)","v":""}]
[]
[]
[]
[]
[]
[]
[]
[]
[]
[]
[null,null,null,null,null,null,{"$f":"LEFT(B38,5)","v":""}]

{"sheet":"E03","index":5,"n_rows":38,"n_cols":9,"rows_kept":38,"cut":false,"hidden":false,"merged":[[4,1,4,3],[5,2,5,3],[6,2,6,3],[7,2,7,3],[8,2,11,3]]}
[]
[null,null,null,null,null,null,null,null,"Улучшение финансовых возможностей для повышения устойчивости  \n к бедствиям"]
[null,"П3 Улучшение финансовых возможностей для повышения устойчивости к бедствиям",null,null,null,null,{"$f":"TRIM(LEFT(B3,3))","v":"П3"},null,{"$f":"TRIM(MID(B3,4,80))","v":"Улучшение финансовых возможностей для повышения устойчивости к бедствиям"}]
[]
[null,"Вопрос 3.1 Инклюзивные финансовые механизмы",null,null,null,null,{"$f":"TRIM(LEFT(B5,10))","v":"Вопрос 3.1"},null,{"$f":"TRIM(MID(B5,12,120))","v":"Инклюзивные финансовые механизмы"}]
[null,"Вопрос","Комментарии"]
[]
[null,"Ответы","Средства проверки (объяснение и обоснование)"]
[null,null,null,null,null,{"$f":"IF($E$9=1,TRUE,FALSE)","v":false}]
[null,null,null,null,null,{"$f":"IF($E$9=2,TRUE,FALSE)","v":false}]
[null,null,null,null,null,{"$f":"IF($E$9=3,TRUE,FALSE)","v":false}]
[null,null,null,null,null,{"$f":"IF($E$9=4,TRUE,FALSE)","v":false}]
[null,"Действия по содействию инклюзии людей с инвалидностью","Ответственная организация ","Временные рамки"]
[]
[]
[null,null,null,null,null,null,{"$f":"TRIM(LEFT(B16,6))","v":""}]
[]
[]
[]
[]
[]
[]
[]
[]
[]
[]
[null,null,null,null,null,null,{"$f":"LEFT(B27,5)","v":""}]
[]
[]
[]
[]
[]
[]
[]
[]
[]
[]
[null,null,null,null,null,null,{"$f":"LEFT(B38,5)","v":""}]

{"sheet":"E04","index":6,"n_rows":46,"n_cols":9,"rows_kept":46,"cut":false,"hidden":false,"merged":[[37,1,37,3],[38,2,38,3],[39,2,39,3],[40,2,40,3],[41,2,44,3],[28,2,28,3],[29,2,29,3],[30,2,33,3],[4,1,4,3],[5,2,5,3],[8,2,11,3],[6,2,6,3],[7,2,7,3],[15,1,15,3],[16,2,16,3],[17,2,17,3],[18,2,18,3],[19,2,21,3],[26,1,26,3],[27,2,27,3]]}
[]
[null,null,null,null,null,null,null,null,"Стремление к устойчивому городскому строительству"]
[null,"П4 Стремление к устойчивому городскому строительству",null,null,null,null,{"$f":"TRIM(LEFT(B3,3))","v":"П4"},null,{"$f":"TRIM(MID(B3,4,80))","v":"Стремление к устойчивому городскому строительству"}]
[]
[null,"Вопрос 4.1 Инклюзивное устойчивое архитектурно-строительное проектирование",null,null,null,null,{"$f":"TRIM(LEFT(B5,10))","v":"Вопрос 4.1"},null,{"$f":"TRIM(MID(B5,12,120))","v":"Инклюзивное устойчивое архитектурно-строительное проектирование"}]
[null,"Вопрос","Comments"]
[]
[null,"Ответы","Средства проверки (объяснение и обоснование)"]
[null,null,null,null,null,{"$f":"IF(E9=1,TRUE,FALSE)","v":false}]
[null,null,null,null,null,{"$f":"IF(E9=2,TRUE,FALSE)","v":false}]
[null,null,null,null,null,{"$f":"IF(E9=3,TRUE,FALSE)","v":false}]
[null,null,null,null,null,{"$f":"IF(E9=4,TRUE,FALSE)","v":false}]
[null,"Действия по содействию инклюзии людей с инвалидностью","Ответственная организация ","Временные рамки"]
[]
[]
[null,"Вопрос 4.2 Строительные нормы и правила",null,null,null,null,{"$f":"TRIM(LEFT(B16,10))","v":"Вопрос 4.2"},null,{"$f":"TRIM(MID(B16,12,120))","v":"Строительные нормы и правила"}]
[null,"Вопрос","Комментарии"]
[]
[null,"Ответы","Средства проверки (объяснение и обоснование)"]
[null,null,null,null,null,{"$f":"IF($E$20=1,TRUE,FALSE)","v":false}]
[null,null,null,null,null,{"$f":"IF($E$20=2,TRUE,FALSE)","v":false}]
[null,null,null,null,null,{"$f":"IF($E$20=3,TRUE,FALSE)","v":false}]
[null,null,null,null,null,{"$f":"IF($E$20=4,TRUE,FALSE)","v":false}]
[null,"Действия по содействию инклюзии людей с инвалидностью","Ответственная организация ","Временные рамки"]
[]
[]
[null,"Вопрос 4.3 Строительные нормы и правила",null,null,null,null,{"$f":"LEFT(B27,11)","v":"Вопрос 4.3 "},null,{"$f":"TRIM(MID(B27,12,120))","v":"Строительные нормы и правила"}]
[null,"Вопрос","Комментарии"]
[]
[null,"Ответы","Средства проверки (объяснение и обоснование)"]
[null,null,null,null,null,{"$f":"IF($E$31=1,TRUE,FALSE)","v":false}]
[null,null,null,null,null,{"$f":"IF($E$31=2,TRUE,FALSE)","v":false}]
[null,null,null,null,null,{"$f":"IF($E$31=3,TRUE,FALSE)","v":false}]
[null,null,null,null,null,{"$f":"IF($E$31=4,TRUE,FALSE)","v":false}]
[null,"Действия по содействию инклюзии людей с инвалидностью","Ответственная организация ","Временные рамки"]
[]
[]
[" ","Вопрос 4.4 Устранение барьеров окружающей среды",null,null,null,null,{"$f":"LEFT(B38,10)","v":"Вопрос 4.4"},null,{"$f":"TRIM(MID(B38,12,120))","v":"Устранение барьеров окружающей среды"}]
[null,"Вопрос","Комментарии"]
[]
[null,"Ответы","Средства проверки (объяснение и обоснование)"]
[null,null,null,null,null,{"$f":"IF(E42=1,TRUE,FALSE)","v":false}]
[null,null,null,null,null,{"$f":"IF(E42=2,TRUE,FALSE)","v":false}]
[null,null,null,null,null,{"$f":"IF(E42=3,TRUE,FALSE)","v":false}]
[null,null,null,null,null,{"$f":"IF(E42=4,TRUE,FALSE)","v":false}]
[null,"Действия по содействию инклюзии людей с инвалидностью","Ответственная организация ","Временные рамки"]

{"sheet":"E05","index":7,"n_rows":4,"n_cols":9,"rows_kept":4,"cut":false,"hidden":false,"merged":[]}
[]
[null,null,null,null,null,null,null,null,"Защита естественных буферных зон для усиления защитных функций природных экосистем"]
[]
[null,"П5 Управление экосистемными функциями с учетом интересов людей с инвалидностью",null,null,null,null,null,null,"Управление экосистемными функциями с учетом интересов людей с инвалидностью"]

{"sheet":"E06","index":8,"n_rows":38,"n_cols":9,"rows_kept":38,"cut":false,"hidden":false,"merged":[[19,2,22,3],[15,1,15,3],[16,2,16,3],[17,2,17,3],[18,2,18,3],[4,1,4,3],[5,2,5,3],[6,2,6,3],[7,2,7,3],[8,2,11,3]]}
[]
[null,null,null,null,null,null,null,null,"Укрепление институционального потенциала для обеспечения устойчивости  "]
[null,"П6 Инклюзия людей с инвалидностью в институциональный потенциал",null,null,null,null,{"$f":"TRIM(LEFT(B3,3))","v":"П6"},null,{"$f":"TRIM(MID(B3,4,80))","v":"Инклюзия людей с инвалидностью в институциональный потенциал"}]
[]
[null," Вопрос 6.1 Развитие потенциала и инклюзия для обеспечения устойчивости к бедствиям",null,null,null,null,{"$f":"TRIM(LEFT(B5,12))","v":"Вопрос 6.1"},null,{"$f":"TRIM(MID(B5,12,120))","v":"Развитие потенциала и инклюзия для обеспечения устойчивости к бедствиям"}]
[null,"Вопрос","Комментарии"]
[]
[null,"Ответы","Средства проверки (объяснение и обоснование)"]
[null,null,null,null,null,{"$f":"IF(E9=1,TRUE,FALSE)","v":false}]
[null,null,null,null,null,{"$f":"IF(E9=2,TRUE,FALSE)","v":false}]
[null,null,null,null,null,{"$f":"IF(E9=3,TRUE,FALSE)","v":false}]
[null,null,null,null,null,{"$f":"IF(E9=4,TRUE,FALSE)","v":false}]
[null,"Действия по содействию инклюзии людей с инвалидностью","Ответственная организация ","Временные рамки"]
[]
[]
[null,"Вопрос 6.2 Доступный язык",null,null,null,null,{"$f":"TRIM(LEFT(B16,10))","v":"Вопрос 6.2"},null,{"$f":"TRIM(MID(B16,12,120))","v":"Доступный язык"}]
[null,"Вопрос","Комментарии"]
[]
[null,"Ответы","Средства проверки (объяснение и обоснование)"]
[null,null,null,null,null,{"$f":"IF(E20=1,TRUE,FALSE)","v":false}]
[null,null,null,null,null,{"$f":"IF(E20=2,TRUE,FALSE)","v":false}]
[null,null,null,null,null,{"$f":"IF(E20=3,TRUE,FALSE)","v":false}]
[null,null,null,null,null,{"$f":"IF(E20=4,TRUE,FALSE)","v":false}]
[null,"Действия по содействию инклюзии людей с инвалидностью","Ответственная организация n","Временные рамки"]
[]
[]
[null,null,null,null,null,null,{"$f":"LEFT(B27,5)","v":""},null,{"$f":"TRIM(MID(B27,6,120))","v":""}]
[]
[]
[]
[]
[]
[]
[]
[]
[]
[]
[null,null,null,null,null,null,{"$f":"LEFT(B38,5)","v":""},null,{"$f":"TRIM(MID(B38,6,120))","v":""}]

{"sheet":"E07","index":9,"n_rows":38,"n_cols":9,"rows_kept":38,"cut":false,"hidden":false,"merged":[[16,2,16,3],[8,2,11,3],[19,2,22,3],[17,2,17,3],[18,2,18,3],[4,1,4,3],[5,2,5,3],[6,2,6,3],[7,2,7,3],[15,1,15,3]]}
[]
[null,null,null,null,null,null,null,null,"Понимание и усиление общественного потенциала для развития устойчивости"]
[null,"П7 Дополнение - Инклюзия людей с инвалидностью в общественный потенциал",null,null,null,null,{"$f":"TRIM(LEFT(B3,3))","v":"П7"},null,{"$f":"TRIM(MID(B3,4,80))","v":"Дополнение - Инклюзия людей с инвалидностью в общественный потенциал"}]
[]
[null,"  Вопрос 7.1 Активное участие организаций людей с инвалидностью ",null,null,null,null,{"$f":"TRIM(LEFT(B5,10))","v":"Вопрос 7"},null,{"$f":"TRIM(MID(B5,12,120))","v":"1 Активное участие организаций людей с инвалидностью"}]
[null,"Вопрос","Комментарии"]
[]
[null,"Ответы","Средства проверки (объяснение и обоснование)"]
[null,null,null,null,null,{"$f":"IF(E9=1,TRUE,FALSE)","v":false}]
[null,null,null,null,null,{"$f":"IF(E9=2,TRUE,FALSE)","v":false}]
[null,null,null,null,null,{"$f":"IF(E9=3,TRUE,FALSE)","v":false}]
[null,null,null,null,null,{"$f":"IF(E9=4,TRUE,FALSE)","v":false}]
[null,"  Действия по содействию инклюзии людей с инвалидностью","Ответственная организация ","Временные рамки"]
[]
[]
[null,"Вопрос 7.2 Наращивание потенциала организациями/для организаций людей с инвалидностью ",null,null,null,null,{"$f":"TRIM(LEFT(B16,10))","v":"Вопрос 7.2"},null,{"$f":"TRIM(MID(B16,12,120))","v":"Наращивание потенциала организациями/для организаций людей с инвалидностью"}]
[null,"Вопрос","Комментарии"]
[]
[null,"Ответы","Средства проверки (объяснение и обоснование)"]
[null,null,null,null,null,{"$f":"IF(E20=1,TRUE,FALSE)","v":false}]
[null,null,null,null,null,{"$f":"IF(E20=2,TRUE,FALSE)","v":false}]
[null,null,null,null,null,{"$f":"IF(E20=3,TRUE,FALSE)","v":false}]
[null,null,null,null,null,{"$f":"IF(E20=4,TRUE,FALSE)","v":false}]
[null,"Действия по содействию инклюзии людей с инвалидностью","Ответственная организация ","Временные рамки"]
[]
[]
[null,null,null,null,null,null,{"$f":"LEFT(B27,5)","v":""},null,{"$f":"TRIM(MID(B27,6,120))","v":""}]
[]
[]
[]
[]
[]
[]
[]
[]
[]
[]
[null,null,null,null,null,null,{"$f":"LEFT(B38,5)","v":""},null,{"$f":"TRIM(MID(B38,6,120))","v":""}]

{"sheet":"E08","index":10,"n_rows":38,"n_cols":10,"rows_kept":38,"cut":false,"hidden":false,"merged":[[8,2,11,3],[4,1,4,3],[5,2,5,3],[6,2,6,3],[7,2,7,3]]}
[]
[null,null,null,null,null,null,null,null,"Повышение устойчивости инфраструктуры"]
[null,"П8 Инклюзия людей с инвалидностью в обеспечение устойчивости инфраструктуры",null,null,null,null,{"$f":"TRIM(LEFT(B3,3))","v":"П8"},null,{"$f":"TRIM(MID(B3,4,80))","v":"Инклюзия людей с инвалидностью в обеспечение устойчивости инфраструктуры"},{"$f":"TRIM(MID(C3,4,80))","v":""}]
[]
[null,"Вопрос 8.1 Защита от насилия",null,null,null,null,{"$f":"TRIM(LEFT(B5,10))","v":"Вопрос 8.1"},null,{"$f":"TRIM(MID(B5,12,120))","v":"Защита от насилия"},{"$f":"TRIM(MID(C5,6,120))","v":""}]
[null,"Вопрос","Комментарии"]
[]
[null,"Ответы","Средства проверки (объяснение и обоснование)"]
[null,null,null,null,null,{"$f":"IF(E9=1,TRUE,FALSE)","v":false}]
[null,null,null,null,null,{"$f":"IF(E9=2,TRUE,FALSE)","v":false}]
[null,null,null,null,null,{"$f":"IF(E9=3,TRUE,FALSE)","v":false}]
[null,null,null,null,null,{"$f":"IF(E9=4,TRUE,FALSE)","v":false}]
[null,"Действия по содействию инклюзии людей с инвалидностью","Ответственная организация ","Временные рамки"]
[]
[]
[null,null,null,null,null,null,{"$f":"TRIM(LEFT(B16,6))","v":""},null,{"$f":"TRIM(MID(B16,6,120))","v":""},{"$f":"TRIM(MID(C16,6,120))","v":""}]
[]
[]
[]
[]
[]
[]
[]
[]
[]
[]
[null,null,null,null,null,null,{"$f":"LEFT(B27,5)","v":""},null,{"$f":"TRIM(MID(B27,6,120))","v":""},{"$f":"TRIM(MID(C27,6,120))","v":""}]
[]
[]
[]
[]
[]
[]
[]
[]
[]
[]
[null,null,null,null,null,null,{"$f":"LEFT(B38,5)","v":""},null,{"$f":"TRIM(MID(B38,6,120))","v":""},{"$f":"TRIM(MID(C38,6,120))","v":""}]

{"sheet":"E09","index":11,"n_rows":38,"n_cols":9,"rows_kept":38,"cut":false,"hidden":false,"merged":[[17,2,17,3],[18,2,18,3],[4,1,4,3],[5,2,5,3],[6,2,6,3],[7,2,7,3],[15,1,15,3],[16,2,16,3],[8,2,11,3],[30,2,33,3],[19,2,22,3],[26,1,26,3],[27,2,27,3],[28,2,28,3],[29,2,29,3]]}
[]
[null,null,null,null,null,null,null,null,"Обеспечение эффективного реагирования на бедствия"]
[null,"П9 Дополнение - Инклюзия людей с инвалидностью в реагирование на бедствия",null,null,null,null,{"$f":"TRIM(LEFT(B3,3))","v":"П9"},null,{"$f":"TRIM(MID(B3,4,80))","v":"Дополнение - Инклюзия людей с инвалидностью в реагирование на бедствия"}]
[]
[null,"Вопрос 9.1 Инклюзивное обнаружение, мониторинг и раннее предупреждение",null,null,null,null,{"$f":"TRIM(LEFT(B5,10))","v":"Вопрос 9.1"},null,{"$f":"TRIM(MID(B5,12,120))","v":"Инклюзивное обнаружение, мониторинг и раннее предупреждение"}]
[null,"Вопрос","Комментарии"]
[]
[null,"Ответы","Средства проверки (объяснение и обоснование)"]
[null,null,null,null,null,{"$f":"IF(E9=1,TRUE,FALSE)","v":false}]
[null,null,null,null,null,{"$f":"IF(E9=2,TRUE,FALSE)","v":false}]
[null,null,null,null,null,{"$f":"IF(E9=3,TRUE,FALSE)","v":false}]
[null,null,null,null,null,{"$f":"IF(E9=4,TRUE,FALSE)","v":false}]
[null,"Действия по содействию инклюзии людей с инвалидностью","Ответственная организация ","Временные рамки"]
[]
[]
[null,"Вопрос 9.2 Учения",null,null,null,null,{"$f":"TRIM(LEFT(B16,10))","v":"Вопрос 9.2"},null,{"$f":"TRIM(MID(B16,12,120))","v":"Учения"}]
[null,"Вопрос","Комментарии"]
[]
[null,"Ответы","Средства проверки (объяснение и обоснование)"]
[null,null,null,null,null,{"$f":"IF(E20=1,TRUE,FALSE)","v":false}]
[null,null,null,null,null,{"$f":"IF(E20=2,TRUE,FALSE)","v":false}]
[null,null,null,null,null,{"$f":"IF(E20=3,TRUE,FALSE)","v":false}]
[null,null,null,null,null,{"$f":"IF(E20=4,TRUE,FALSE)","v":false}]
[null,"Действия по содействию инклюзии людей с инвалидностью","Ответственная организация ","Временные рамки"]
[]
[]
[null,"Вопрос 9.3 Кампании по повышению осведомленности и многосценарные учения",null,null,null,null,{"$f":"LEFT(B27,10)","v":"Вопрос 9.3"},null,{"$f":"TRIM(MID(B27,12,120))","v":"Кампании по повышению осведомленности и многосценарные учения"}]
[null,"Вопрос","Комментарии"]
[]
[null,"Response","Средства проверки (объяснение и обоснование)"]
[null,null,null,null,null,{"$f":"IF(E31=1,TRUE,FALSE)","v":false}]
[null,null,null,null,null,{"$f":"IF(E31=2,TRUE,FALSE)","v":false}]
[null,null,null,null,null,{"$f":"IF(E31=3,TRUE,FALSE)","v":false}]
[null,null,null,null,null,{"$f":"IF(E31=4,TRUE,FALSE)","v":false}]
[null,"Действия по содействию инклюзии людей с инвалидностью","Ответственная организация ","Временные рамки"]
[]
[]
[null,null,null,null,null,null,{"$f":"LEFT(B38,5)","v":""},null,{"$f":"TRIM(MID(B38,6,120))","v":""}]

{"sheet":"E10","index":12,"n_rows":38,"n_cols":9,"rows_kept":38,"cut":false,"hidden":false,"merged":[[16,2,16,3],[17,2,17,3],[18,2,18,3],[19,2,22,3],[4,1,4,3],[5,2,5,3],[6,2,6,3],[7,2,7,3],[8,2,11,3],[15,1,15,3]]}
[]
[null,null,null,null,null,null,null,null,"Ускоренное восстановление и принцип «Лучше, чем было»"]
[null,"П10 Инклюзия людей с инвалидностью в процесс восстановления/принцип «Лучше, чем было»",null,null,null,null,{"$f":"TRIM(LEFT(B3,3))","v":"П10"},null,{"$f":"TRIM(MID(B3,4,80))","v":"Инклюзия людей с инвалидностью в процесс восстановления/принцип «Лучше, чем был"}]
[]
[null,"Вопрос 10.1 Вопрос 10.1 Инклюзивная реконструкция и восстановление",null,null,null,null,{"$f":"TRIM(LEFT(B5,11))","v":"Вопрос 10.1"},null,{"$f":"TRIM(MID(B5,13,120))","v":"Вопрос 10.1 Инклюзивная реконструкция и восстановление"}]
[null,"Вопрос","Комментарии"]
[]
[null,"Ответы","Средства проверки (объяснение и обоснование)"]
[null,null,null,null,null,{"$f":"IF(E9=1,TRUE,FALSE)","v":false}]
[null,null,null,null,null,{"$f":"IF(E9=2,TRUE,FALSE)","v":false}]
[null,null,null,null,null,{"$f":"IF(E9=3,TRUE,FALSE)","v":false}]
[null,null,null,null,null,{"$f":"IF(E9=4,TRUE,FALSE)","v":false}]
[null,"Действия по содействию инклюзии людей с инвалидностью","Ответственная организация ","Временные рамки"]
[]
[]
[null,"Вопрос 10.2 Обобщение извлеченных уроков",null,null,null,null,{"$f":"TRIM(LEFT(B16,11))","v":"Вопрос 10.2"},null,{"$f":"TRIM(MID(B16,13,120))","v":"Обобщение извлеченных уроков"}]
[null,"Вопрос","Комментарии"]
[]
[null,"Ответы","Средства проверки (объяснение и обоснование)"]
[null,null,null,null,null,{"$f":"IF(E20=1,TRUE,FALSE)","v":false}]
[null,null,null,null,null,{"$f":"IF(E20=2,TRUE,FALSE)","v":false}]
[null,null,null,null,null,{"$f":"IF(E20=3,TRUE,FALSE)","v":false}]
[null,null,null,null,null,{"$f":"IF(E20=4,TRUE,FALSE)","v":false}]
[null,"Действия по содействию инклюзии людей с инвалидностью","Ответственная организация ","Временные рамки"]
[]
[]
[null,null,null,null,null,null,{"$f":"LEFT(B27,5)","v":""},null,{"$f":"TRIM(MID(B27,6,120))","v":""}]
[]
[]
[]
[]
[]
[]
[]
[]
[]
[]
[null,null,null,null,null,null,{"$f":"LEFT(B38,5)","v":""},null,{"$f":"TRIM(MID(B38,6,120))","v":""}]

{"sheet":"About","index":13,"n_rows":0,"n_cols":0,"rows_kept":0,"cut":false,"hidden":false,"merged":[]}